bitfinex/quotes_ETHUSD_20250214
["timestamp","ask_amount","ask_price","bid_price","bid_amount"]
[1739553901306,0.005,2743.4,2743.3,7.49124]
[1739553901505,0.005,2743.4,2743.3,42.49124]
[1739553902260,1e-05,2743.4,2743.3,42.59124]
[1739553902736,5.55001,2743.4,2743.3,42.59124]
[1739553903108,0.74071102,2744.1,2744.0,3.65931]
[1739553903313,1.5723,2744.4,2744.0,3.65931]
[1739553903314,1.5723,2744.4,2744.2,3.65904]
[1739553903533,1.5723,2744.4,2744.2,6.94004]
[1739553903745,1.5723,2744.4,2744.2,7.49004]
[1739553904054,5.6995013,2744.3,2744.2,42.49004]
[1739553904220,5.6995013,2744.3,2744.2,42.59004]
[1739553904414,5.6995013,2744.3,2744.2,42.79004]
[1739553904910,3.8775413,2744.3,2744.2,51.99506699]
[1739553905265,4.43e-06,2745.0,2744.9,7.50811]
[1739553905472,4.43e-06,2745.0,2744.9,10.60083991]
[1739553905607,1.5723,2746.3,2745.7,0.015]
[1739553905808,1.5723,2746.9,2746.2,35.0]
[1739553906008,1.5723,2746.9,2746.3,6.93715]
[1739553906245,1.5723,2746.9,2746.3,6.65615]
[1739553906447,4.64451465,2746.9,2746.3,0.015]
[1739553906657,1.5794,2746.8,2745.5,4.10731699]
[1739553906839,0.71200287,2746.4,2745.6,0.281]
[1739553907155,0.71200287,2746.4,2745.9,3.015]
[1739553907452,4.65161465,2746.3,2746.1,35.0]
[1739553907662,1.5794,2746.2,2744.8,9.41722]
[1739553907821,1.5794,2746.2,2744.9,0.281]
[1739553907822,1.5794,2745.8,2744.9,0.281]
[1739553908208,1.5794,2745.8,2745.0,0.015]
[1739553908410,3.07221465,2745.6,2745.1,0.281]
[1739553908639,4.65161465,2745.3,2745.1,0.281]
[1739553908839,1.62493108,2745.2,2745.0,0.281]
[1739553909047,1.5794,2745.0,2744.6,0.281]
[1739553909335,1.5794,2744.6,2743.7,35.0]
[1739553909535,2.29373516,2743.9,2743.8,3.281]
[1739553909740,2.29373516,2743.9,2743.8,0.2885]
[1739553910048,2.29373516,2743.9,2743.8,0.281]
[1739553910255,2.29373516,2743.9,2743.8,0.296]
[1739553910615,1.5794,2743.9,2743.8,3.296]
[1739553910866,1.5794,2743.9,2743.8,6.94058]
[1739553911182,5.55,2743.9,2743.8,0.296]
[1739553911487,7.1294,2743.9,2743.8,0.281]
[1739553911638,7.1294,2743.9,2743.8,35.281]
[1739553911986,7.1294,2743.9,2743.8,38.0]
[1739553912193,12.6794,2743.9,2743.8,38.281]
[1739553913483,18.2294,2743.9,2743.8,38.281]
[1739553913785,18.1294,2743.9,2743.8,38.281]
[1739553914670,23.6794,2743.9,2743.8,38.281]
[1739553915983,29.2294,2743.9,2743.8,38.281]
[1739553917078,29.2294,2743.9,2743.8,38.2885]
[1739553917283,34.7794,2743.9,2743.8,38.2885]
[1739553917841,34.7794,2743.9,2743.8,41.93308]
[1739553918061,33.2,2743.9,2743.8,41.94058]
[1739553918454,38.75,2743.9,2743.8,41.94058]
[1739553919084,38.75,2743.9,2743.8,38.015]
[1739553919247,38.75,2743.9,2743.8,38.2885]
[1739553919899,44.3,2743.9,2743.8,38.0]
[1739553920090,44.3,2743.9,2743.8,35.281]
[1739553920299,44.3,2743.9,2743.8,35.0]
[1739553920441,47.76528686,2743.9,2743.8,35.0]
[1739553920791,45.8892,2743.9,2743.8,38.281]
[1739553920995,51.4392,2743.9,2743.8,35.281]
[1739553921764,51.4392,2743.9,2743.8,38.0]
[1739553921974,51.4392,2743.9,2743.8,38.281]
[1739553922183,56.9892,2743.9,2743.8,38.281]
[1739553923448,62.5392,2743.9,2743.8,38.281]
[1739553924178,63.25215542,2743.9,2743.8,38.281]
[1739553924774,68.80215542,2743.9,2743.8,38.281]
[1739553925810,66.5,2743.9,2743.8,41.94058]
[1739553925969,72.05,2743.9,2743.8,41.94058]
[1739553926389,72.05,2743.9,2743.8,38.296]
[1739553926983,72.05,2743.9,2743.8,41.94058]
[1739553927197,77.6,2743.9,2743.8,41.94058]
[1739553927707,77.6,2743.9,2743.8,38.296]
[1739553927909,77.6,2743.9,2743.8,41.94058]
[1739553928509,83.15,2743.9,2743.8,41.94058]
[1739553928815,83.15,2743.9,2743.8,38.296]
[1739553929109,84.702,2743.9,2743.8,35.281]
[1739553929693,90.252,2743.9,2743.8,38.281]
[1739553930303,90.252,2743.9,2743.8,38.0]
[1739553930502,90.252,2743.9,2743.8,38.281]
[1739553930881,95.802,2743.9,2743.8,38.281]
[1739553931083,95.802,2743.9,2743.8,38.0]
[1739553931391,95.802,2743.9,2743.8,35.0]
[1739553931392,99.60833374,2743.9,2743.8,35.0]
[1739553932204,101.352,2743.9,2743.8,35.0]
[1739553932711,101.352,2743.9,2743.8,38.0]
[1739553933325,106.902,2743.9,2743.8,38.0]
[1739553934604,112.452,2743.9,2743.8,38.0]
[1739553936195,118.002,2743.9,2743.8,38.281]
[1739553936919,118.002,2743.9,2743.8,35.281]
[1739553937463,127.35833374,2743.9,2743.8,35.281]
[1739553937795,127.35833374,2743.9,2743.8,38.281]
[1739553938518,132.90833374,2743.9,2743.8,38.281]
[1739553939021,132.90833374,2743.9,2743.8,0.281]
[1739553939187,132.90833374,2743.9,2743.5,0.281]
[1739553939188,1.6338,2743.8,2743.5,0.281]
[1739553939388,1.6338,2743.6,2743.4,0.281]
[1739553939614,1.6338,2743.6,2743.3,0.281]
[1739553939846,7.1838,2743.6,2743.3,0.281]
[1739553939990,7.1838,2743.6,2743.4,35.0]
[1739553940196,7.1838,2743.6,2743.5,3.0]
[1739553940510,7.1838,2743.6,2743.3,0.281]
[1739553940511,1.6338,2743.5,2743.3,0.281]
[1739553940906,1.6338,2743.5,2743.4,38.0]
[1739553941096,7.1838,2743.5,2743.4,38.0]
[1739553941312,7.72177752,2743.5,2743.4,38.0]
[1739553941950,7.1838,2743.5,2743.4,3.0]
[1739553942466,12.7338,2743.5,2743.4,3.0]
[1739553942854,12.7338,2743.5,2743.4,38.0]
[1739553943651,18.2838,2743.5,2743.4,38.0]
[1739553945011,23.8338,2743.5,2743.4,38.0]
[1739553945664,27.25011315,2743.5,2743.4,35.0]
[1739553945819,27.80011315,2743.5,2743.4,35.0]
[1739553946013,27.25011315,2743.5,2743.4,35.0]
[1739553946219,29.3838,2743.5,2743.4,35.0]
[1739553947752,34.9338,2743.5,2743.4,35.0]
[1739553947960,1.6338,2743.4,2742.9,0.281]
[1739553948254,33.85,2743.5,2742.9,0.281]
[1739553948255,1.6338,2743.1,2742.9,0.281]
[1739553948785,1.6338,2743.1,2743.0,35.0]
[1739553948982,7.1838,2743.1,2743.0,38.0]
[1739553949789,7.9146563,2743.1,2743.0,38.0]
[1739553950374,13.4646563,2743.1,2743.0,38.0]
[1739553950569,13.4646563,2743.1,2743.0,3.0]
[1739553951285,13.4646563,2743.1,2743.0,38.0]
[1739553951687,19.0146563,2743.1,2743.0,38.0]
[1739553953103,24.5646563,2743.1,2743.0,38.0]
[1739553954071,24.5146563,2743.1,2743.0,38.0]
[1739553954283,30.0646563,2743.1,2743.0,38.0]
[1739553955704,35.6146563,2743.1,2743.0,38.0]
[1739553956877,41.1646563,2743.1,2743.0,38.0]
[1739553957262,41.1646563,2743.1,2743.0,3.0]
[1739553957711,41.1646563,2743.1,2743.0,38.0]
[1739553958214,46.7146563,2743.1,2743.0,38.0]
[1739553960042,52.2646563,2743.1,2743.0,38.0]
[1739553960806,1.5886,2743.0,2742.0,3.64695]
[1739553960977,56.79896032,2743.1,2742.1,0.281]
[1739553960978,1.5886,2742.5,2742.1,0.281]
[1739553961164,1.5886,2742.5,2742.2,35.0]
[1739553961372,1.5886,2742.5,2742.3,3.0]
[1739553962091,7.1386,2742.5,2742.3,3.0]
[1739553963512,12.6886,2742.5,2742.3,3.0]
[1739553963892,0.74256125,2742.4,2742.3,3.281]
[1739553964720,6.29256125,2742.4,2742.3,3.281]
[1739553964884,6.47825625,2742.4,2742.3,3.281]
[1739553966089,12.02825625,2742.4,2742.3,3.281]
[1739553966505,11.285695,2742.4,2742.3,3.281]
[1739553967223,16.835695,2742.4,2742.3,3.281]
[1739553968383,23.12380759,2742.4,2742.3,3.281]
[1739553969622,28.67380759,2742.4,2742.3,3.281]
[1739553970779,34.22380759,2742.4,2742.3,3.281]
[1739553971015,34.22380759,2742.4,2742.3,3.0]
[1739553971180,34.22380759,2742.4,2742.3,3.281]
[1739553971934,34.22380759,2742.4,2742.3,3.0]
[1739553972228,41.39470759,2742.4,2742.3,3.0]
[1739553972431,41.39470759,2742.4,2742.2,35.0]
[1739553972593,4.70136381,2742.3,2742.2,35.0]
[1739553973441,10.25136381,2742.3,2742.2,35.0]
[1739553974644,3.84,2742.1,2741.3,0.57022928]
[1739553974826,3.08046381,2741.6,2741.0,0.281]
[1739553975008,1.6209,2741.5,2741.1,35.281]
[1739553975601,3.08046381,2741.3,2741.1,35.0]
[1739553975835,1.6209,2741.5,2741.2,3.0]
[1739553975836,7.1709,2741.5,2741.2,3.0]
[1739553975992,5.55,2741.5,2741.1,1.6001]
[1739553976393,5.55,2741.5,2741.4,3.0]
[1739553976595,5.55,2741.5,2741.0,3.281]
[1739553976994,11.1,2741.5,2741.4,38.0]
[1739553977235,11.1,2741.5,2741.4,41.64777]
[1739553977439,11.1,2741.5,2741.4,39.6001]
[1739553978139,16.65,2741.5,2741.4,39.6001]
[1739553978433,16.65,2741.5,2741.4,43.24787]
[1739553979231,16.65,2741.5,2741.4,39.6001]
[1739553979537,22.2,2741.5,2741.4,38.0]
[1739553979934,22.2,2741.5,2741.4,38.281]
[1739553980641,27.75,2741.5,2741.4,38.281]
[1739553980824,27.75,2741.5,2741.4,35.0]
[1739553981941,33.3,2741.5,2741.4,38.0]
[1739553983609,38.85,2741.5,2741.4,38.0]
[1739553984942,44.4,2741.5,2741.4,38.0]
[1739553986203,49.95,2741.5,2741.4,38.0]
[1739553986926,49.95,2741.5,2741.4,41.64777]
[1739553987360,55.5,2741.5,2741.4,41.64777]
[1739553988457,55.5,2741.5,2741.4,38.0]
[1739553988613,61.05,2741.5,2741.4,38.0]
[1739553988818,61.05,2741.5,2741.4,38.281]
[1739553989814,66.6,2741.5,2741.4,38.281]
[1739553990014,66.6,2741.5,2741.4,38.0]
[1739553990215,66.6,2741.5,2741.4,38.281]
[1739553991156,72.15,2741.5,2741.4,38.281]
[1739553991657,72.15,2741.5,2741.4,41.92877]
[1739553991858,72.15,2741.5,2741.4,43.58497]
[1739553992216,72.15,2741.5,2741.4,38.281]
[1739553992543,80.78046381,2741.5,2741.4,35.281]
[1739553993157,80.78046381,2741.5,2741.4,38.281]
[1739553993357,82.28746381,2741.5,2741.4,38.281]
[1739553993660,79.207,2741.5,2741.4,38.281]
[1739553993819,84.757,2741.5,2741.4,38.281]
[1739553994745,83.25,2741.5,2741.4,38.281]
[1739553995121,88.8,2741.5,2741.4,38.281]
[1739553996424,94.35,2741.5,2741.4,38.281]
[1739553997763,99.9,2741.5,2741.4,38.281]
[1739553997919,101.5517,2741.5,2741.4,38.0]
[1739553998258,101.5517,2741.5,2741.4,38.281]
[1739553998957,107.1017,2741.5,2741.4,38.0]
[1739554000251,112.6517,2741.5,2741.4,38.0]
[1739554000658,111.0,2741.5,2741.4,38.0]
[1739554001448,111.0,2741.5,2741.4,41.64777]
[1739554001449,116.55,2741.5,2741.4,41.64777]
[1739554001824,116.55,2741.5,2741.4,43.25707]
[1739554002729,116.55,2741.5,2741.4,39.6093]
[1739554002730,122.1,2741.5,2741.4,39.6093]
[1739554003068,122.1,2741.5,2741.4,43.25707]
[1739554003423,122.1,2741.5,2741.4,38.0]
[1739554003850,122.1,2741.5,2741.4,38.281]
[1739554004064,127.65,2741.5,2741.4,38.281]
[1739554005423,133.2,2741.5,2741.4,38.281]
[1739554006022,134.8517,2741.5,2741.4,38.0]
[1739554006321,134.8517,2741.5,2741.4,38.281]
[1739554006322,133.2,2741.5,2741.4,38.281]
[1739554006819,138.75,2741.5,2741.4,38.281]
[1739554008120,144.3,2741.5,2741.4,38.281]
[1739554009421,149.85,2741.5,2741.4,38.281]
[1739554010715,155.4,2741.5,2741.4,38.281]
[1739554011840,155.4,2741.5,2741.4,41.92877]
[1739554012159,160.95,2741.5,2741.4,39.9024]
[1739554012361,160.95,2741.5,2741.4,38.281]
[1739554013207,166.5,2741.5,2741.4,38.281]
[1739554013658,166.5,2741.5,2741.4,41.92877]
[1739554014566,172.05,2741.5,2741.4,41.92877]
[1739554015952,177.6,2741.5,2741.4,41.92877]
[1739554016266,179.0992,2741.5,2741.4,41.92877]
[1739554017155,184.6492,2741.5,2741.4,41.92877]
[1739554018442,190.1992,2741.5,2741.4,43.55017]
[1739554019552,195.7492,2741.5,2741.4,43.55017]
[1739554020871,201.2992,2741.5,2741.4,43.55017]
[1739554022062,206.8492,2741.5,2741.4,43.55017]
[1739554022563,206.8492,2741.5,2741.4,41.92877]
[1739554023366,212.3992,2741.5,2741.4,41.92877]
[1739554024790,217.9492,2741.5,2741.4,41.92877]
[1739554026294,223.4992,2741.5,2741.4,41.92877]
[1739554027594,229.0492,2741.5,2741.4,41.92877]
[1739554028788,234.5992,2741.5,2741.4,41.92877]
[1739554029601,234.5992,2741.5,2741.4,38.0]
[1739554029755,234.5992,2741.5,2741.4,38.281]
[1739554029955,240.1492,2741.5,2741.4,38.281]
[1739554030176,240.1492,2741.5,2741.4,41.92877]
[1739554030406,240.1492,2741.5,2741.4,38.281]
[1739554030574,240.1492,2741.5,2741.4,41.92877]
[1739554031074,245.6992,2741.5,2741.4,38.281]
[1739554032618,245.6992,2741.5,2741.4,41.92877]
[1739554032925,251.2492,2741.5,2741.4,41.92877]
[1739554033809,252.8078,2741.5,2741.4,38.0]
[1739554034011,265.24459755,2741.5,2741.4,38.281]
[1739554035523,270.79459755,2741.5,2741.4,35.0]
[1739554035682,1.5586,2741.4,2741.0,0.281]
[1739554035889,4.63906381,2741.1,2741.0,0.281]
[1739554036086,5.10753098,2741.1,2741.0,0.281]
[1739554036816,10.65753098,2741.1,2741.0,38.281]
[1739554037012,10.18906381,2741.1,2741.0,38.281]
[1739554037312,10.18906381,2741.1,2741.0,35.281]
[1739554038221,15.73906381,2741.1,2741.0,38.281]
[1739554038507,15.73906381,2741.1,2741.0,35.0]
[1739554039395,15.73906381,2741.1,2740.4,0.281]
[1739554039396,1.6312,2740.9,2740.4,0.281]
[1739554039603,1.6312,2740.6,2740.4,0.281]
[1739554039909,1.67681748,2740.5,2740.4,0.281]
[1739554040283,1.67681748,2740.5,2740.4,38.281]
[1739554040486,1.6312,2740.5,2740.4,38.281]
[1739554041013,7.1812,2740.5,2740.4,38.281]
[1739554042090,12.7312,2740.5,2740.4,38.281]
[1739554042744,11.1,2740.5,2740.4,38.281]
[1739554043297,11.1,2740.5,2740.4,3.281]
[1739554043500,19.93891892,2740.5,2740.4,3.281]
[1739554044208,1.6353,2740.4,2740.0,35.0]
[1739554044406,4.71576381,2740.1,2740.0,35.0]
[1739554044608,3.08046381,2740.1,2739.5,0.57071485]
[1739554044822,1.6809291,2740.0,2739.7,0.281]
[1739554045027,1.6809291,2740.0,2739.8,35.0]
[1739554045252,1.6353,2740.0,2739.8,35.0]
[1739554045517,1.6353,2740.0,2739.7,0.281]
[1739554045723,1.6353,2739.8,2739.7,0.281]
[1739554046022,4.71576381,2739.8,2739.7,35.0]
[1739554046225,4.71576381,2739.8,2739.4,0.281]
[1739554046424,3.08046381,2739.5,2739.2,0.57079021]
[1739554046575,3.08046381,2739.5,2739.1,0.281]
[1739554046780,3.08046381,2739.2,2739.1,0.281]
[1739554046976,1.6353,2739.6,2739.1,0.281]
[1739554046977,3.08046381,2739.5,2739.1,0.281]
[1739554047182,5.55,2739.2,2739.1,0.281]
[1739554047485,8.63046381,2739.2,2739.1,0.281]
[1739554047701,8.63046381,2739.2,2739.1,35.281]
[1739554048725,14.18046381,2739.2,2739.1,38.281]
[1739554049988,19.73046381,2739.2,2739.1,38.281]
[1739554051432,22.2,2739.2,2739.1,38.281]
[1739554052929,27.75,2739.2,2739.1,38.281]
[1739554053326,27.75,2739.2,2739.1,41.93183]
[1739554054436,33.3,2739.2,2739.1,41.93183]
[1739554055440,33.3,2739.2,2739.1,43.45223]
[1739554055607,38.85,2739.2,2739.1,43.46723]
[1739554056892,44.4,2739.2,2739.1,43.46723]
[1739554058134,49.95,2739.2,2739.1,43.46723]
[1739554058696,49.95,2739.2,2739.1,43.45223]
[1739554059626,55.5,2739.2,2739.1,43.45223]
[1739554060897,61.05,2739.2,2739.1,43.45223]
[1739554061130,65.4475,2739.2,2739.1,33.89672071]
[1739554061330,1.5444,2739.1,2737.7,4.03293129]
[1739554061567,3.08798836,2738.6,2737.9,0.57089814]
[1739554061770,1.59005208,2738.5,2737.9,0.57089814]
[1739554061954,2.3285372,2738.5,2737.9,0.57089814]
[1739554062478,2.28288512,2738.5,2738.0,35.281]
[1739554062984,3.08798836,2738.2,2738.0,35.0]
[1739554063184,1.5444,2738.1,2738.0,35.0]
[1739554067042,1.5444,2738.1,2737.6,0.281]
[1739554067243,3.08798836,2737.8,2737.6,0.281]
[1739554067668,3.08798836,2737.8,2737.7,38.0]
[1739554069190,0.18018182,2738.1,2737.8,6.65249]
[1739554069395,0.18018182,2738.1,2737.8,3.0]
[1739554069893,0.18018182,2738.1,2738.0,35.0]
[1739554070776,0.18018182,2738.1,2738.0,39.5563]
[1739554071688,0.18018182,2738.1,2738.0,38.0]
[1739554073290,5.39,2738.9,2738.1,6.65209]
[1739554073291,3.08798836,2738.7,2738.1,6.65209]
[1739554073591,6.9315,2738.9,2738.2,5.16302]
[1739554073801,6.9315,2738.9,2738.2,1.511]
[1739554073952,5.39,2738.9,2738.3,3.65183]
[1739554074156,5.39,2738.9,2738.2,1.511]
[1739554074456,3.81844752,2739.0,2738.6,3.0]
[1739554074657,3.81844752,2739.0,2738.2,1.511]
[1739554074658,3.81844752,2739.0,2738.7,0.281]
[1739554075179,3.81844752,2739.0,2738.7,35.281]
[1739554077960,61.05,2739.2,2738.8,6.6512]
[1739554078167,5.55,2739.0,2738.8,3.0]
[1739554079387,11.1,2739.0,2738.8,3.0]
[1739554080015,11.1,2739.0,2738.9,1.511]
[1739554080155,11.28235899,2739.0,2738.9,4.511]
[1739554080364,11.1,2739.0,2738.9,8.1621]
[1739554080563,11.1,2739.0,2738.9,8.1771]
[1739554080564,11.99014119,2739.0,2738.9,8.1771]
[1739554081172,11.99014119,2739.0,2738.9,43.1771]
[1739554081992,17.54014119,2739.0,2738.9,43.1771]
[1739554082496,17.54014119,2739.0,2738.9,43.0471]
[1739554083313,23.09014119,2739.0,2738.9,43.0471]
[1739554084800,19.51274119,2739.0,2738.9,45.6971]
[1739554085283,15.86178119,2739.0,2738.9,45.6971]
[1739554085676,10.38573119,2739.0,2738.9,45.6971]
[1739554085882,15.73288487,2739.0,2738.9,45.8971]
[1739554086301,13.90753487,2739.0,2738.9,45.8971]
[1739554087229,15.80657487,2739.0,2738.9,45.8971]
[1739554088032,12.15587487,2739.0,2738.9,45.8971]
[1739554088387,14.05517487,2739.0,2738.9,45.8971]
[1739554089718,15.95434487,2739.0,2738.9,45.8971]
[1739554090222,10.47829487,2739.0,2738.9,48.98508836]
[1739554090522,5.94300162,2739.0,2738.9,49.39970113]
[1739554090901,11.49300162,2739.0,2738.9,49.39970113]
[1739554091412,7.84230162,2739.0,2738.9,46.31171277]
[1739554091613,2.36625162,2739.0,2738.9,46.31171277]
[1739554092137,2.36625162,2739.0,2738.9,49.39970113]
[1739554092305,0.61485162,2739.0,2738.9,46.31171277]
[1739554092507,0.61485162,2739.0,2738.9,49.39970113]
[1739554092704,0.61485162,2739.0,2738.9,52.76868949]
[1739554093439,52.53810162,2739.2,2739.1,9.05483]
[1739554093994,52.53810162,2739.2,2739.1,44.05483]
[1739554094715,56.26275162,2739.2,2739.1,44.05483]
[1739554094920,54.43740162,2739.2,2739.1,44.05483]
[1739554095427,52.61205162,2739.2,2739.1,44.05483]
[1739554095631,48.96135162,2739.2,2739.1,44.05483]
[1739554095821,45.31065162,2739.2,2739.1,44.05483]
[1739554096133,50.86065162,2739.2,2739.1,44.79162369]
[1739554097692,56.41065162,2739.2,2739.1,44.79162369]
[1739554099004,61.96065162,2739.2,2739.1,44.79162369]
[1739554099239,58.30995162,2739.2,2739.1,44.79162369]
[1739554099635,56.48460162,2739.2,2739.1,45.07262369]
[1739554100463,62.03460162,2739.2,2739.1,45.07262369]
[1739554101633,67.58460162,2739.2,2739.1,45.07262369]
[1739554103061,73.13460162,2739.2,2739.1,45.07262369]
[1739554104332,78.68460162,2739.2,2739.1,45.07262369]
[1739554105749,78.68460162,2739.2,2739.1,45.94162369]
[1739554105750,84.23460162,2739.2,2739.1,45.94162369]
[1739554105927,84.23460162,2739.2,2739.1,38.66583]
[1739554106127,84.23460162,2739.2,2739.1,38.94683]
[1739554106323,84.23460162,2739.2,2739.1,41.94683]
[1739554106990,89.78460162,2739.2,2739.1,41.94683]
[1739554108269,95.33460162,2739.2,2739.1,41.94683]
[1739554108988,1.5851,2739.1,2738.2,3.65198]
[1739554109280,1.5851,2739.1,2738.3,3.0]
[1739554109486,1.5851,2739.1,2738.2,3.93301]
[1739554109487,1.5851,2739.0,2738.2,3.93301]
[1739554109792,1.5851,2738.6,2738.3,0.0075]
[1739554109989,1.5851,2738.6,2738.4,35.281]
[1739554110185,1.5851,2738.6,2738.5,0.281]
[1739554110436,2.07059317,2738.6,2738.5,0.281]
[1739554110776,2.07059317,2738.6,2738.5,3.281]
[1739554110958,2.07059317,2738.6,2738.5,0.281]
[1739554111166,1.5851,2738.5,2738.4,0.281]
[1739554111487,4.67308836,2738.5,2738.4,0.281]
[1739554111702,5.21169597,2738.5,2738.4,0.281]
[1739554112864,5.21169597,2738.5,2738.4,38.0]
[1739554113065,1.5851,2738.5,2738.4,38.0]
[1739554115966,4.67308836,2738.5,2738.4,38.0]
[1739554116411,8.47798836,2738.5,2737.1,0.0125]
[1739554116579,3.08798836,2738.1,2737.7,0.281]
[1739554116784,1.589,2738.0,2737.7,0.281]
[1739554117405,1.589,2738.0,2737.9,3.0]
[1739554117582,1.589,2738.0,2737.7,0.281]
[1739554118109,1.589,2738.0,2737.9,38.0]
[1739554123102,1.77468985,2738.0,2737.9,38.0]
[1739554124828,1.77468985,2738.0,2737.9,35.0]
[1739554125032,2.33269102,2738.0,2737.9,35.0]
[1739554125185,11.60835133,2738.0,2737.9,35.0]
[1739554125385,14.65067938,2738.0,2737.9,35.0]
[1739554125793,14.65067938,2738.0,2737.4,0.57110844]
[1739554125794,1.6049,2737.9,2737.4,0.57110844]
[1739554125994,9.97369102,2738.0,2737.4,0.57110844]
[1739554125995,1.6049,2737.5,2737.4,0.57110844]
[1739554126687,1.6049,2737.5,2737.4,38.57110844]
[1739554134536,3.08798836,2737.9,2737.4,38.57110844]
[1739554134837,1.5865,2737.8,2737.4,38.57110844]
[1739554135714,1.5865,2737.8,2737.5,3.0]
[1739554135920,5.57568985,2738.0,2737.4,4.22412844]
[1739554136248,5.57568985,2738.0,2737.4,0.57110844]
[1739554136425,5.57568985,2738.0,2737.7,3.0]
[1739554139536,5.57568985,2738.0,2737.6,3.0]
[1739554139741,5.57568985,2738.0,2737.4,4.22418844]
[1739554139742,5.57568985,2738.0,2737.5,3.0]
[1739554139942,5.57568985,2738.0,2737.9,3.0]
[1739554140548,5.39,2738.0,2737.9,3.0]
[1739554141943,1.5924,2738.6,2737.9,3.0]
[1739554142145,1.5924,2738.6,2738.1,3.0]
[1739554142355,0.18184339,2738.7,2738.2,0.281]
[1739554143543,0.18184339,2738.7,2738.4,3.0]
[1739554143747,0.18184339,2738.7,2738.2,3.281]
[1739554144043,5.39,2739.0,2738.4,3.0]
[1739554144261,5.39,2739.0,2738.6,3.0]
[1739554144468,15.62038836,2739.1,2738.6,3.0]
[1739554144757,15.62038836,2739.1,2738.3,3.0]
[1739554144962,15.62038836,2739.1,2738.5,4.56]
[1739554145264,15.62038836,2739.1,2738.7,35.0]
[1739554147866,15.62038836,2739.1,2738.8,3.0]
[1739554147867,16.49,2739.1,2738.8,3.0]
[1739554148070,16.49,2739.1,2738.8,4.5806]
[1739554149134,22.04,2739.1,2738.8,1.5806]
[1739554149349,22.04,2739.1,2739.0,3.0]
[1739554149534,22.04,2739.1,2738.8,1.5806]
[1739554150049,22.04,2739.1,2739.0,38.0]
[1739554150485,27.59,2739.1,2739.0,38.0]
[1739554150964,23.8346,2739.1,2739.0,38.281]
[1739554151872,29.3846,2739.1,2739.0,38.281]
[1739554153123,34.9346,2739.1,2739.0,38.281]
[1739554154379,40.4846,2739.1,2739.0,38.281]
[1739554155365,38.85,2739.1,2739.0,38.281]
[1739554155580,44.4,2739.1,2739.0,38.281]
[1739554156677,49.95,2739.1,2739.0,38.281]
[1739554158172,55.5,2739.1,2739.0,38.281]
[1739554159516,61.05,2739.1,2739.0,38.281]
[1739554160808,66.6,2739.1,2739.0,38.281]
[1739554161616,71.22848836,2739.1,2739.0,38.281]
[1739554162010,76.77848836,2739.1,2739.0,38.281]
[1739554162492,76.77848836,2739.1,2739.0,38.0]
[1739554162703,76.77848836,2739.1,2739.0,38.281]
[1739554163388,79.2405,2739.1,2739.0,38.281]
[1739554164020,77.7,2739.1,2739.0,38.281]
[1739554164824,83.25,2739.1,2739.0,38.281]
[1739554165789,88.8,2739.1,2739.0,38.281]
[1739554170839,94.35,2739.1,2739.0,38.281]
[1739554170986,105.45,2739.1,2739.0,38.281]
[1739554172233,111.0,2739.1,2739.0,38.281]
[1739554173628,116.55,2739.1,2739.0,41.93196]
[1739554173795,116.55,2739.1,2739.0,38.281]
[1739554174872,122.1,2739.1,2739.0,38.281]
[1739554175372,122.1,2739.1,2739.0,3.0]
[1739554175373,125.18798836,2739.1,2739.0,3.0]
[1739554175584,127.50221325,2739.1,2739.0,3.0]
[1739554175872,127.50221325,2739.1,2739.0,38.0]
[1739554176076,130.73798836,2739.1,2739.0,3.0]
[1739554177480,136.28798836,2739.1,2739.0,3.0]
[1739554178590,141.83798836,2739.1,2739.0,3.0]
[1739554179758,147.38798836,2739.1,2739.0,3.0]
[1739554180133,147.38798836,2739.1,2739.0,38.0]
[1739554180336,149.00548836,2739.1,2739.0,38.0]
[1739554183503,147.38798836,2739.1,2739.0,38.0]
[1739554184997,152.77798836,2739.1,2739.0,38.0]
[1739554186671,152.77798836,2739.1,2739.0,38.281]
[1739554187578,158.32798836,2739.1,2739.0,38.281]
[1739554188808,163.87798836,2739.1,2739.0,38.281]
[1739554190016,169.42798836,2739.1,2739.0,38.281]
[1739554190912,169.42798836,2739.1,2739.0,38.0]
[1739554191109,174.97798836,2739.1,2739.0,38.0]
[1739554192587,180.52798836,2739.1,2739.0,38.0]
[1739554192920,186.30971515,2739.1,2739.0,35.0]
[1739554193084,5.486,2739.0,2738.3,0.28]
[1739554193286,3.08798836,2738.2,2738.1,0.28]
[1739554193601,3.3967872,2738.2,2738.1,35.28]
[1739554193783,4.73398836,2738.2,2738.1,35.0]
[1739554194714,11.13001836,2738.2,2737.5,0.28]
[1739554194919,1.646,2737.6,2737.5,0.57115421]
[1739554195268,1.646,2737.6,2737.5,35.57115421]
[1739554195784,1.646,2737.6,2737.5,38.57115421]
[1739554197118,1.646,2737.6,2737.5,38.0]
[1739554197289,2.1928249,2737.6,2737.5,35.0]